[Event "Titled Tuesday Blitz July 25 Late 2023"]
[White "EsmeraldasAnderson03"]
[Black "Golubev, Mikhail"]
[BlackFideId "14100983"]
[WhiteElo "2393"]
[BlackElo "2555"]
[Result "1-0"]
[Round "3"]
[TimeControl "180+2"]
[Date "2023.07.25"]
[WhiteClock "0:00:01"]
[BlackClock "0:00:00"]
[Board "111"]

1. d4 {[%clk 0:03:00]}  Nf6 {[%clk 0:02:59]} 2. Nf3 {[%clk 0:03:00]}  d6 {[%clk 0:02:59]} 3. Bf4 {[%clk 0:03:00]}  Nbd7 {[%clk 0:02:58]} 4. h3 {[%clk 0:03:00]}  g6 {[%clk 0:02:54]} 5. e3 {[%clk 0:02:59]}  Bg7 {[%clk 0:02:54]} 6. Be2 {[%clk 0:02:59]}  O-O {[%clk 0:02:54]} 7. Bh2 {[%clk 0:03:00]}  Qe8 {[%clk 0:02:49]} 8. O-O {[%clk 0:03:00]}  e5 {[%clk 0:02:49]} 9. c4 {[%clk 0:02:55]}  Qe7 {[%clk 0:02:44]} 10. Nc3 {[%clk 0:02:54]}  Re8 {[%clk 0:02:41]} 11. Re1 {[%clk 0:02:37]}  b6 {[%clk 0:02:29]} 12. a3 {[%clk 0:02:02]}  Bb7 {[%clk 0:02:27]} 13. Nb5 {[%clk 0:02:01]}  Rec8 {[%clk 0:02:10]} 14. Rc1 {[%clk 0:01:53]}  a6 {[%clk 0:02:03]} 15. Nc3 {[%clk 0:01:53]}  e4 {[%clk 0:01:52]} 16. Nd2 {[%clk 0:01:52]}  c6 {[%clk 0:01:42]} 17. Qb3 {[%clk 0:00:57]}  c5 {[%clk 0:01:38]} 18. dxc5 {[%clk 0:00:48]}  dxc5 {[%clk 0:01:36]} 19. Red1 {[%clk 0:00:47]}  Bc6 {[%clk 0:01:19]} 20. Nf1 {[%clk 0:00:39]}  Ne5 {[%clk 0:01:06]} 21. Nd5 {[%clk 0:00:26]}  Nxd5 {[%clk 0:00:45]} 22. cxd5 {[%clk 0:00:26]}  Bb5 {[%clk 0:00:46]} 23. Bxb5 {[%clk 0:00:21]}  axb5 {[%clk 0:00:47]} 24. Bxe5 {[%clk 0:00:20]}  Qxe5 {[%clk 0:00:46]} 25. Qxb5 {[%clk 0:00:20]}  Qxb2 {[%clk 0:00:45]} 26. Qxb2 {[%clk 0:00:21]}  Bxb2 {[%clk 0:00:45]} 27. Rb1 {[%clk 0:00:22]}  Bxa3 {[%clk 0:00:44]} 28. Rxb6 {[%clk 0:00:23]}  c4 {[%clk 0:00:44]} 29. d6 {[%clk 0:00:13]}  c3 {[%clk 0:00:44]} 30. d7 {[%clk 0:00:14]}  Rd8 {[%clk 0:00:44]} 31. Rc6 {[%clk 0:00:14]}  Bb2 {[%clk 0:00:44]} 32. Ng3 {[%clk 0:00:14]}  f5 {[%clk 0:00:37]} 33. Ne2 {[%clk 0:00:15]}  Kf7 {[%clk 0:00:31]} 34. Nxc3 {[%clk 0:00:13]}  Bxc3 {[%clk 0:00:31]} 35. Rxc3 {[%clk 0:00:14]}  Ra7 {[%clk 0:00:31]} 36. g4 {[%clk 0:00:08]}  Raxd7 {[%clk 0:00:27]} 37. Rxd7+ {[%clk 0:00:08]}  Rxd7 {[%clk 0:00:28]} 38. gxf5 {[%clk 0:00:09]}  gxf5 {[%clk 0:00:27]} 39. Rc6 {[%clk 0:00:09]}  Rd2 {[%clk 0:00:25]} 40. Kg2 {[%clk 0:00:10]}  f4 {[%clk 0:00:21]} 41. exf4 {[%clk 0:00:04]}  e3 {[%clk 0:00:21]} 42. Kf3 {[%clk 0:00:05]}  e2 {[%clk 0:00:14]} 43. Rc7+ {[%clk 0:00:03]}  Ke8 {[%clk 0:00:12]} 44. Rc1 {[%clk 0:00:02]}  Kf7 {[%clk 0:00:01]} 45. Re1 {[%clk 0:00:01]}  Rd3+ {[%clk 0:00:00]} 46. Kg2 {[%clk 0:00:01]} 1-0


[Site "https://www.chess.com"]

[Event "Titled Tuesday Blitz July 25 Late 2023"]
[White "Feng, Eric"]
[Black "only_strong_moves"]
[WhiteFideId "30952590"]
[WhiteElo "2554"]
[BlackElo "2505"]
[Result "1-0"]
[Round "3"]
[TimeControl "180+2"]
[Date "2023.07.25"]
[WhiteClock "0:00:54"]
[BlackClock "0:00:00"]
[Board "112"]

1. d4 {[%clk 0:03:00]}  d5 {[%clk 0:02:59]} 2. c4 {[%clk 0:03:01]}  e6 {[%clk 0:03:00]} 3. Nf3 {[%clk 0:03:01]}  Nf6 {[%clk 0:02:58]} 4. g3 {[%clk 0:03:01]}  Bb4+ {[%clk 0:02:56]} 5. Bd2 {[%clk 0:03:01]}  Be7 {[%clk 0:02:57]} 6. Bg2 {[%clk 0:03:02]}  O-O {[%clk 0:02:56]} 7. O-O {[%clk 0:03:02]}  c6 {[%clk 0:02:57]} 8. b3 {[%clk 0:03:01]}  b6 {[%clk 0:02:57]} 9. Nc3 {[%clk 0:03:02]}  Bb7 {[%clk 0:02:57]} 10. Qc2 {[%clk 0:03:02]}  Nbd7 {[%clk 0:02:57]} 11. e4 {[%clk 0:03:03]}  dxe4 {[%clk 0:02:53]} 12. Nxe4 {[%clk 0:03:04]}  c5 {[%clk 0:02:45]} 13. Nxf6+ {[%clk 0:02:52]}  Bxf6 {[%clk 0:02:35]} 14. dxc5 {[%clk 0:02:35]}  Nxc5 {[%clk 0:02:28]} 15. Rad1 {[%clk 0:02:11]}  Be4 {[%clk 0:02:28]} 16. Qc1 {[%clk 0:02:12]}  Nd3 {[%clk 0:02:28]} 17. Qa3 {[%clk 0:02:12]}  Bb2 {[%clk 0:02:09]} 18. Qa4 {[%clk 0:02:11]}  Nc5 {[%clk 0:02:07]} 19. Qb4 {[%clk 0:02:06]}  a5 {[%clk 0:01:57]} 20. Qb5 {[%clk 0:02:06]}  Qc7 {[%clk 0:01:41]} 21. Bf4 {[%clk 0:01:56]}  Qb7 {[%clk 0:01:38]} 22. Nh4 {[%clk 0:01:52]}  Bxg2 {[%clk 0:01:31]} 23. Nxg2 {[%clk 0:01:53]}  Rfd8 {[%clk 0:01:14]} 24. Be3 {[%clk 0:01:52]}  Ba3 {[%clk 0:01:05]} 25. Nf4 {[%clk 0:01:43]}  Rdb8 {[%clk 0:00:25]} 26. Rd6 {[%clk 0:01:33]}  Qf3 {[%clk 0:00:10]} 27. Rxb6 {[%clk 0:01:30]}  Rxb6 {[%clk 0:00:10]} 28. Qxb6 {[%clk 0:01:31]}  Ne4 {[%clk 0:00:08]} 29. Qc6 {[%clk 0:01:17]}  Rd8 {[%clk 0:00:08]} 30. Ng2 {[%clk 0:01:08]}  h6 {[%clk 0:00:05]} 31. Nh4 {[%clk 0:01:00]}  Qg4 {[%clk 0:00:03]} 32. f3 {[%clk 0:01:00]}  Qh3 {[%clk 0:00:02]} 33. Qxe4 {[%clk 0:00:57]}  Bb4 {[%clk 0:00:01]} 34. Ng2 {[%clk 0:00:53]}  g5 {[%clk 0:00:01]} 35. Qg4 {[%clk 0:00:53]}  Qxg4 {[%clk 0:00:01]} 36. fxg4 {[%clk 0:00:54]}  Rd4 {[%clk 0:00:00]} 37. Bxd4 {[%clk 0:00:54]} 1-0


[Site "https://www.chess.com"]

[Event "Titled Tuesday Blitz July 25 Late 2023"]
[White "Topalov, Aleksandar"]
[Black "Antonica, Dragos-Andrei"]
[WhiteFideId "925659"]
[BlackFideId "1246372"]
[WhiteElo "2363"]
[BlackElo "2542"]
[Result "0-1"]
[Round "3"]
[TimeControl "180+2"]
[Date "2023.07.25"]
[WhiteClock "0:00:00"]
[BlackClock "0:00:49"]
[Board "116"]

1. b3 {[%clk 0:03:00]}  e5 {[%clk 0:02:56]} 2. Bb2 {[%clk 0:03:00]}  Nc6 {[%clk 0:02:57]} 3. c4 {[%clk 0:03:00]}  Nf6 {[%clk 0:02:56]} 4. e3 {[%clk 0:03:00]}  d5 {[%clk 0:02:56]} 5. cxd5 {[%clk 0:03:00]}  Nxd5 {[%clk 0:02:57]} 6. a3 {[%clk 0:03:01]}  Bd6 {[%clk 0:02:55]} 7. Qc2 {[%clk 0:03:00]}  O-O {[%clk 0:02:54]} 8. Nf3 {[%clk 0:03:00]}  Kh8 {[%clk 0:02:52]} 9. d3 {[%clk 0:03:00]}  f5 {[%clk 0:02:52]} 10. Nbd2 {[%clk 0:03:00]}  Qe7 {[%clk 0:02:53]} 11. g3 {[%clk 0:02:59]}  f4 {[%clk 0:02:48]} 12. gxf4 {[%clk 0:03:00]}  exf4 {[%clk 0:02:48]} 13. e4 {[%clk 0:03:00]}  Ne3 {[%clk 0:02:46]} 14. Qc3 {[%clk 0:02:55]}  Nxf1 {[%clk 0:02:45]} 15. Rxf1 {[%clk 0:02:55]}  Re8 {[%clk 0:02:21]} 16. Rg1 {[%clk 0:02:53]}  Ne5 {[%clk 0:02:20]} 17. Nxe5 {[%clk 0:02:30]}  Bxe5 {[%clk 0:02:21]} 18. d4 {[%clk 0:02:29]}  Bf6 {[%clk 0:02:18]} 19. O-O-O {[%clk 0:02:20]}  c5 {[%clk 0:02:04]} 20. Qxc5 {[%clk 0:01:46]}  Qf7 {[%clk 0:02:03]} 21. Kb1 {[%clk 0:01:35]}  Bd7 {[%clk 0:01:54]} 22. e5 {[%clk 0:01:26]}  Bh4 {[%clk 0:01:54]} 23. d5 {[%clk 0:01:19]}  Rac8 {[%clk 0:01:38]} 24. Qd4 {[%clk 0:01:07]}  Bf5+ {[%clk 0:01:08]} 25. Ka2 {[%clk 0:01:06]}  Rc2 {[%clk 0:01:04]} 26. e6 {[%clk 0:00:51]}  Qf6 {[%clk 0:00:51]} 27. Ne4 {[%clk 0:00:00]}  Bxe4 {[%clk 0:00:49]} 0-1


[Site "https://www.chess.com"]

[Event "Titled Tuesday Blitz July 25 Late 2023"]
[White "DampFalcon"]
[Black "Toropov, Pavel"]
[BlackFideId "24129178"]
[WhiteElo "2360"]
[BlackElo "2542"]
[Result "1-0"]
[Round "3"]
[TimeControl "180+2"]
[Date "2023.07.25"]
[WhiteClock "0:00:13"]
[BlackClock "0:01:16"]
[Board "117"]

1. e4 {[%clk 0:03:00]}  e6 {[%clk 0:02:59]} 2. d4 {[%clk 0:03:00]}  d5 {[%clk 0:03:00]} 3. Nd2 {[%clk 0:03:00]}  dxe4 {[%clk 0:03:00]} 4. Nxe4 {[%clk 0:03:00]}  Nd7 {[%clk 0:03:00]} 5. Nf3 {[%clk 0:03:00]}  Ngf6 {[%clk 0:03:01]} 6. Nxf6+ {[%clk 0:02:58]}  Nxf6 {[%clk 0:03:02]} 7. g3 {[%clk 0:02:59]}  b6 {[%clk 0:03:02]} 8. Bb5+ {[%clk 0:02:59]}  Bd7 {[%clk 0:03:02]} 9. a4 {[%clk 0:02:46]}  a6 {[%clk 0:03:01]} 10. Bxd7+ {[%clk 0:02:46]}  Qxd7 {[%clk 0:03:01]} 11. O-O {[%clk 0:02:35]}  Be7 {[%clk 0:03:01]} 12. c3 {[%clk 0:02:34]}  O-O {[%clk 0:02:59]} 13. Ne5 {[%clk 0:02:34]}  Qd5 {[%clk 0:02:59]} 14. Qf3 {[%clk 0:02:33]}  Rfd8 {[%clk 0:02:58]} 15. Bf4 {[%clk 0:02:25]}  c5 {[%clk 0:02:44]} 16. Rad1 {[%clk 0:02:06]}  Bf8 {[%clk 0:02:08]} 17. Qe2 {[%clk 0:01:15]}  Qb3 {[%clk 0:02:00]} 18. Bg5 {[%clk 0:01:05]}  cxd4 {[%clk 0:01:49]} 19. Bxf6 {[%clk 0:00:31]}  gxf6 {[%clk 0:01:50]} 20. Qg4+ {[%clk 0:00:30]}  Bg7 {[%clk 0:01:50]} 21. Nc6 {[%clk 0:00:28]}  Rd5 {[%clk 0:01:38]} 22. Ne7+ {[%clk 0:00:26]}  Kf8 {[%clk 0:01:38]} 23. Nxd5 {[%clk 0:00:26]}  Qxd5 {[%clk 0:01:37]} 24. Rxd4 {[%clk 0:00:26]}  Qc6 {[%clk 0:01:37]} 25. Qe4 {[%clk 0:00:25]}  Qxe4 {[%clk 0:01:35]} 26. Rxe4 {[%clk 0:00:26]}  f5 {[%clk 0:01:36]} 27. Rc4 {[%clk 0:00:26]}  b5 {[%clk 0:01:31]} 28. axb5 {[%clk 0:00:25]}  axb5 {[%clk 0:01:32]} 29. Rb4 {[%clk 0:00:25]}  Ra5 {[%clk 0:01:30]} 30. f4 {[%clk 0:00:17]}  Ke7 {[%clk 0:01:29]} 31. Rd1 {[%clk 0:00:16]}  h5 {[%clk 0:01:24]} 32. Rb1 {[%clk 0:00:16]}  Bf6 {[%clk 0:01:24]} 33. c4 {[%clk 0:00:16]}  bxc4 {[%clk 0:01:18]} 34. Rxc4 {[%clk 0:00:17]}  Rb5 {[%clk 0:01:18]} 35. b4 {[%clk 0:00:16]}  Kd6 {[%clk 0:01:18]} 36. Rd1+ {[%clk 0:00:15]}  Rd5 {[%clk 0:01:18]} 37. Rxd5+ {[%clk 0:00:15]}  Kxd5 {[%clk 0:01:19]} 38. Rc7 {[%clk 0:00:14]}  Bd4+ {[%clk 0:01:18]} 39. Kg2 {[%clk 0:00:14]}  f6 {[%clk 0:01:19]} 40. b5 {[%clk 0:00:14]}  e5 {[%clk 0:01:18]} 41. Kf3 {[%clk 0:00:14]}  e4+ {[%clk 0:01:18]} 42. Ke2 {[%clk 0:00:14]}  Kd6 {[%clk 0:01:19]} 43. Rc6+ {[%clk 0:00:14]}  Kd5 {[%clk 0:01:19]} 44. Rc8 {[%clk 0:00:11]}  Kd6 {[%clk 0:01:19]} 45. Rd8+ {[%clk 0:00:11]}  Kc5 {[%clk 0:01:19]} 46. Rxd4 {[%clk 0:00:12]}  Kxd4 {[%clk 0:01:16]} 47. b6 {[%clk 0:00:13]} 1-0


[Site "https://www.chess.com"]

[Event "Titled Tuesday Blitz July 25 Late 2023"]
[White "Jaskolka, Tomasz"]
[Black "Yolosz"]
[WhiteFideId "1170791"]
[WhiteElo "2540"]
[BlackElo "2357"]
[Result "1-0"]
[Round "3"]
[TimeControl "180+2"]
[Date "2023.07.25"]
[WhiteClock "0:00:14"]
[BlackClock "0:00:03"]
[Board "118"]

1. e4 {[%clk 0:03:00]}  c6 {[%clk 0:02:59]} 2. d4 {[%clk 0:02:59]}  d5 {[%clk 0:02:58]} 3. e5 {[%clk 0:02:59]}  Bf5 {[%clk 0:02:57]} 4. Nf3 {[%clk 0:03:00]}  e6 {[%clk 0:02:56]} 5. Nbd2 {[%clk 0:03:00]}  c5 {[%clk 0:02:53]} 6. dxc5 {[%clk 0:02:59]}  Bxc5 {[%clk 0:02:49]} 7. Nb3 {[%clk 0:03:00]}  Bb6 {[%clk 0:02:47]} 8. Bg5 {[%clk 0:02:55]}  Ne7 {[%clk 0:02:36]} 9. Nbd4 {[%clk 0:02:53]}  Bg6 {[%clk 0:02:30]} 10. h4 {[%clk 0:02:51]}  h6 {[%clk 0:02:29]} 11. Bf4 {[%clk 0:02:41]}  Nbc6 {[%clk 0:02:20]} 12. h5 {[%clk 0:02:40]}  Bh7 {[%clk 0:02:19]} 13. c3 {[%clk 0:02:29]}  Nxd4 {[%clk 0:02:06]} 14. Nxd4 {[%clk 0:02:22]}  O-O {[%clk 0:01:53]} 15. Bd3 {[%clk 0:02:15]}  Bxd4 {[%clk 0:01:42]} 16. Bxh7+ {[%clk 0:02:11]}  Kxh7 {[%clk 0:01:42]} 17. cxd4 {[%clk 0:02:12]}  Qa5+ {[%clk 0:01:40]} 18. Bd2 {[%clk 0:02:12]}  Qb6 {[%clk 0:01:39]} 19. Bc3 {[%clk 0:02:12]}  f5 {[%clk 0:01:29]} 20. exf6 {[%clk 0:02:10]}  Rxf6 {[%clk 0:01:29]} 21. Qc2+ {[%clk 0:01:58]}  Kg8 {[%clk 0:01:27]} 22. O-O-O {[%clk 0:01:59]}  Rc8 {[%clk 0:01:17]} 23. Kb1 {[%clk 0:01:58]}  Nf5 {[%clk 0:01:10]} 24. Qd3 {[%clk 0:01:42]}  Nd6 {[%clk 0:01:08]} 25. f3 {[%clk 0:01:37]}  Qb5 {[%clk 0:01:03]} 26. Ka1 {[%clk 0:01:26]}  Qxd3 {[%clk 0:00:54]} 27. Rxd3 {[%clk 0:01:26]}  a6 {[%clk 0:00:35]} 28. Kb1 {[%clk 0:01:25]}  b5 {[%clk 0:00:34]} 29. Re1 {[%clk 0:01:22]}  Kf7 {[%clk 0:00:32]} 30. a3 {[%clk 0:01:13]}  Nc4 {[%clk 0:00:31]} 31. Bb4 {[%clk 0:01:10]}  Rc6 {[%clk 0:00:30]} 32. Rc1 {[%clk 0:01:04]}  a5 {[%clk 0:00:26]} 33. Be1 {[%clk 0:00:52]}  a4 {[%clk 0:00:26]} 34. Bb4 {[%clk 0:00:51]}  Rf4 {[%clk 0:00:24]} 35. g4 {[%clk 0:00:48]}  g6 {[%clk 0:00:23]} 36. Ka2 {[%clk 0:00:41]}  gxh5 {[%clk 0:00:22]} 37. Bd2 {[%clk 0:00:32]}  Rf6 {[%clk 0:00:16]} 38. gxh5 {[%clk 0:00:32]}  Rf5 {[%clk 0:00:15]} 39. Bxh6 {[%clk 0:00:32]}  Rxh5 {[%clk 0:00:15]} 40. Bf4 {[%clk 0:00:31]}  Rf5 {[%clk 0:00:14]} 41. Bb8 {[%clk 0:00:30]}  Ke7 {[%clk 0:00:13]} 42. b3 {[%clk 0:00:29]}  axb3+ {[%clk 0:00:13]} 43. Rxb3 {[%clk 0:00:29]}  Ra6 {[%clk 0:00:12]} 44. Rcc3 {[%clk 0:00:26]}  Ra5 {[%clk 0:00:10]} 45. Bc7 {[%clk 0:00:27]}  Ra7 {[%clk 0:00:10]} 46. Bg3 {[%clk 0:00:25]}  Ra5 {[%clk 0:00:11]} 47. Be1 {[%clk 0:00:25]}  Kd7 {[%clk 0:00:10]} 48. Rd3 {[%clk 0:00:26]}  Kc6 {[%clk 0:00:10]} 49. Bxa5 {[%clk 0:00:25]}  Nxa5 {[%clk 0:00:10]} 50. Rbc3+ {[%clk 0:00:26]}  Nc4 {[%clk 0:00:10]} 51. Rd1 {[%clk 0:00:26]}  Rf4 {[%clk 0:00:11]} 52. Re1 {[%clk 0:00:26]}  Kd6 {[%clk 0:00:11]} 53. Rd3 {[%clk 0:00:26]}  Kd7 {[%clk 0:00:10]} 54. Kb3 {[%clk 0:00:26]}  Kd6 {[%clk 0:00:11]} 55. Kb4 {[%clk 0:00:27]}  e5 {[%clk 0:00:07]} 56. Kxb5 {[%clk 0:00:21]}  exd4 {[%clk 0:00:06]} 57. Red1 {[%clk 0:00:17]}  Ne5 {[%clk 0:00:06]} 58. Rxd4 {[%clk 0:00:17]}  Rxf3 {[%clk 0:00:06]} 59. Rxd5+ {[%clk 0:00:17]}  Ke6 {[%clk 0:00:06]} 60. Rd6+ {[%clk 0:00:17]}  Kf5 {[%clk 0:00:07]} 61. a4 {[%clk 0:00:18]}  Rb3+ {[%clk 0:00:07]} 62. Kc5 {[%clk 0:00:18]}  Rc3+ {[%clk 0:00:06]} 63. Kb4 {[%clk 0:00:18]}  Rc4+ {[%clk 0:00:06]} 64. Kb3 {[%clk 0:00:19]}  Rc7 {[%clk 0:00:05]} 65. Rf1+ {[%clk 0:00:19]}  Ke4 {[%clk 0:00:05]} 66. Re1+ {[%clk 0:00:20]}  Kf5 {[%clk 0:00:05]} 67. Rd5 {[%clk 0:00:19]}  Rb7+ {[%clk 0:00:05]} 68. Kc3 {[%clk 0:00:18]}  Rc7+ {[%clk 0:00:05]} 69. Kb4 {[%clk 0:00:15]}  Rc4+ {[%clk 0:00:02]} 70. Kb5 {[%clk 0:00:15]}  Re4 {[%clk 0:00:03]} 71. Rxe4 {[%clk 0:00:16]}  Kxe4 {[%clk 0:00:03]} 72. Rxe5+ {[%clk 0:00:16]}  Kxe5 {[%clk 0:00:04]} 73. a5 {[%clk 0:00:13]}  Kd6 {[%clk 0:00:04]} 74. Kb6 {[%clk 0:00:14]}  Kd7 {[%clk 0:00:03]} 75. Kb7 {[%clk 0:00:14]} 1-0


[Site "https://www.chess.com"]

[Event "Titled Tuesday Blitz July 25 Late 2023"]
[White "Manon-og, Ramon Jr."]
[Black "Janaszak, Dawid"]
[WhiteFideId "5200776"]
[BlackFideId "1119206"]
[WhiteElo "2336"]
[BlackElo "2538"]
[Result "0-1"]
[Round "3"]
[TimeControl "180+2"]
[Date "2023.07.25"]
[WhiteClock "0:01:01"]
[BlackClock "0:01:38"]
[Board "120"]

1. d4 {[%clk 0:03:00]}  d5 {[%clk 0:02:59]} 2. c4 {[%clk 0:03:00]}  c5 {[%clk 0:02:59]} 3. dxc5 {[%clk 0:02:51]}  d4 {[%clk 0:02:59]} 4. e3 {[%clk 0:02:43]}  e5 {[%clk 0:02:59]} 5. Nf3 {[%clk 0:02:23]}  Nc6 {[%clk 0:02:55]} 6. a3 {[%clk 0:02:17]}  a5 {[%clk 0:02:50]} 7. Bd3 {[%clk 0:02:12]}  Bxc5 {[%clk 0:02:46]} 8. exd4 {[%clk 0:01:58]}  Nxd4 {[%clk 0:02:36]} 9. O-O {[%clk 0:01:58]}  Bg4 {[%clk 0:02:34]} 10. Qa4+ {[%clk 0:01:50]}  Bd7 {[%clk 0:02:01]} 11. Qd1 {[%clk 0:01:48]}  Bg4 {[%clk 0:01:56]} 12. Be4 {[%clk 0:01:35]}  Nf6 {[%clk 0:01:55]} 13. Bxb7 {[%clk 0:01:26]}  O-O {[%clk 0:01:49]} 14. Bxa8 {[%clk 0:01:26]}  Qxa8 {[%clk 0:01:48]} 15. Nbd2 {[%clk 0:01:15]}  e4 {[%clk 0:01:48]} 16. b4 {[%clk 0:01:13]}  exf3 {[%clk 0:01:42]} 17. gxf3 {[%clk 0:01:06]}  Bxf3 {[%clk 0:01:38]} 18. Qa4 {[%clk 0:01:01]}  Ne2# {[%clk 0:01:38]} 0-1


[Site "https://www.chess.com"]

[Event "Titled Tuesday Blitz July 25 Late 2023"]
[White "Principe, Alexander"]
[Black "Fernandez Siles, Luis"]
[WhiteFideId "3804542"]
[BlackFideId "2209420"]
[WhiteElo "2534"]
[BlackElo "2325"]
[Result "1-0"]
[Round "3"]
[TimeControl "180+2"]
[Date "2023.07.25"]
[WhiteClock "0:02:39"]
[BlackClock "0:02:10"]
[Board "123"]

1. e4 {[%clk 0:02:59]}  c5 {[%clk 0:02:59]} 2. Nf3 {[%clk 0:02:59]}  d6 {[%clk 0:02:58]} 3. d4 {[%clk 0:03:00]}  cxd4 {[%clk 0:02:58]} 4. Nxd4 {[%clk 0:03:01]}  Nf6 {[%clk 0:02:58]} 5. Nc3 {[%clk 0:03:01]}  g6 {[%clk 0:02:59]} 6. Be3 {[%clk 0:03:01]}  Bg7 {[%clk 0:02:59]} 7. f3 {[%clk 0:03:02]}  O-O {[%clk 0:02:59]} 8. Bc4 {[%clk 0:03:02]}  Nc6 {[%clk 0:02:59]} 9. Qd2 {[%clk 0:03:03]}  Bd7 {[%clk 0:02:56]} 10. Bb3 {[%clk 0:03:04]}  Qa5 {[%clk 0:02:56]} 11. O-O {[%clk 0:03:03]}  Rfc8 {[%clk 0:02:52]} 12. Qf2 {[%clk 0:02:45]}  Nxd4 {[%clk 0:02:40]} 13. Bxd4 {[%clk 0:02:45]}  b5 {[%clk 0:02:41]} 14. a3 {[%clk 0:02:43]}  a6 {[%clk 0:02:10]} 15. Bb6 {[%clk 0:02:39]} 1-0


[Site "https://www.chess.com"]

[Event "Titled Tuesday Blitz July 25 Late 2023"]
[White "Santos Flores, Alberto"]
[Black "Sala, Giulia"]
[WhiteFideId "3601234"]
[BlackFideId "2840451"]
[WhiteElo "2533"]
[BlackElo "2313"]
[Result "0-1"]
[Round "3"]
[TimeControl "180+2"]
[Date "2023.07.25"]
[WhiteClock "0:00:14"]
[BlackClock "0:00:10"]
[Board "125"]

1. e4 {[%clk 0:03:00]}  e5 {[%clk 0:02:57]} 2. Nf3 {[%clk 0:02:59]}  Nc6 {[%clk 0:02:55]} 3. Bc4 {[%clk 0:02:57]}  Bc5 {[%clk 0:02:54]} 4. c3 {[%clk 0:02:57]}  Nf6 {[%clk 0:02:52]} 5. d3 {[%clk 0:02:56]}  d6 {[%clk 0:02:52]} 6. Nbd2 {[%clk 0:02:53]}  O-O {[%clk 0:02:51]} 7. O-O {[%clk 0:02:53]}  a5 {[%clk 0:02:50]} 8. h3 {[%clk 0:02:52]}  Ba7 {[%clk 0:02:49]} 9. Re1 {[%clk 0:02:51]}  Ne7 {[%clk 0:02:49]} 10. Nf1 {[%clk 0:02:49]}  Ng6 {[%clk 0:02:48]} 11. Ng3 {[%clk 0:02:48]}  h6 {[%clk 0:02:48]} 12. d4 {[%clk 0:02:45]}  Re8 {[%clk 0:02:48]} 13. Nf5 {[%clk 0:02:33]}  exd4 {[%clk 0:02:42]} 14. Bxh6 {[%clk 0:02:13]}  gxh6 {[%clk 0:01:53]} 15. Nxh6+ {[%clk 0:02:12]}  Kg7 {[%clk 0:01:53]} 16. Nxf7 {[%clk 0:02:13]}  Qe7 {[%clk 0:01:53]} 17. cxd4 {[%clk 0:02:13]}  d5 {[%clk 0:01:48]} 18. N3e5 {[%clk 0:01:39]}  dxc4 {[%clk 0:01:41]} 19. Qd2 {[%clk 0:01:39]}  Nxe5 {[%clk 0:01:27]} 20. Nxe5 {[%clk 0:01:39]}  Nh7 {[%clk 0:01:20]} 21. Re3 {[%clk 0:01:38]}  Rg8 {[%clk 0:00:51]} 22. Rg3+ {[%clk 0:01:28]}  Kh8 {[%clk 0:00:50]} 23. Rg6 {[%clk 0:00:47]}  Be6 {[%clk 0:00:32]} 24. Qh6 {[%clk 0:00:25]}  Bf7 {[%clk 0:00:20]} 25. Rf6 {[%clk 0:00:25]}  Raf8 {[%clk 0:00:18]} 26. Rd1 {[%clk 0:00:24]}  Qxf6 {[%clk 0:00:18]} 27. Qe3 {[%clk 0:00:22]}  Bh5 {[%clk 0:00:16]} 28. Rf1 {[%clk 0:00:21]}  Qg7 {[%clk 0:00:16]} 29. g4 {[%clk 0:00:20]}  Bg6 {[%clk 0:00:16]} 30. f4 {[%clk 0:00:19]}  Rd8 {[%clk 0:00:17]} 31. Nf3 {[%clk 0:00:18]}  Rge8 {[%clk 0:00:16]} 32. f5 {[%clk 0:00:18]}  Bxd4 {[%clk 0:00:13]} 33. Nxd4 {[%clk 0:00:17]}  Qxd4 {[%clk 0:00:14]} 34. Qxd4+ {[%clk 0:00:17]}  Rxd4 {[%clk 0:00:15]} 35. fxg6 {[%clk 0:00:18]}  Nf8 {[%clk 0:00:14]} 36. Rf6 {[%clk 0:00:16]}  Kg7 {[%clk 0:00:15]} 37. g5 {[%clk 0:00:16]}  Nxg6 {[%clk 0:00:15]} 38. h4 {[%clk 0:00:15]}  Rdxe4 {[%clk 0:00:15]} 39. h5 {[%clk 0:00:15]}  Nf4 {[%clk 0:00:14]} 40. h6+ {[%clk 0:00:15]}  Kg8 {[%clk 0:00:13]} 41. g6 {[%clk 0:00:15]}  Re1+ {[%clk 0:00:11]} 42. Kf2 {[%clk 0:00:15]}  R8e2+ {[%clk 0:00:12]} 43. Kf3 {[%clk 0:00:15]}  Re3+ {[%clk 0:00:11]} 44. Kxf4 {[%clk 0:00:15]}  Rf1+ {[%clk 0:00:11]} 45. Kxe3 {[%clk 0:00:14]}  Rxf6 {[%clk 0:00:11]} 46. Kd4 {[%clk 0:00:13]}  Rxg6 {[%clk 0:00:11]} 47. Kxc4 {[%clk 0:00:14]}  Rxh6 {[%clk 0:00:11]} 48. Kb5 {[%clk 0:00:15]}  Rb6+ {[%clk 0:00:11]} 49. Kxa5 {[%clk 0:00:15]}  Rxb2 {[%clk 0:00:11]} 50. a4 {[%clk 0:00:16]}  b6+ {[%clk 0:00:10]} 51. Ka6 {[%clk 0:00:16]}  c5 {[%clk 0:00:10]} 52. a5 {[%clk 0:00:15]}  bxa5 {[%clk 0:00:10]} 53. Kxa5 {[%clk 0:00:16]}  c4 {[%clk 0:00:10]} 54. Ka4 {[%clk 0:00:17]}  c3 {[%clk 0:00:10]} 55. Ka3 {[%clk 0:00:17]}  Rb8 {[%clk 0:00:10]} 56. Ka2 {[%clk 0:00:18]}  c2 {[%clk 0:00:10]} 57. Ka3 {[%clk 0:00:14]}  c1=Q+ {[%clk 0:00:10]} 0-1


[Site "https://www.chess.com"]

[Event "Titled Tuesday Blitz July 25 Late 2023"]
[White "ElDivis"]
[Black "Bullen, Alex"]
[BlackFideId "1801627"]
[WhiteElo "2532"]
[BlackElo "2311"]
[Result "1-0"]
[Round "3"]
[TimeControl "180+2"]
[Date "2023.07.25"]
[WhiteClock "0:00:59"]
[BlackClock "0:00:10"]
[Board "126"]

1. d4 {[%clk 0:03:00]}  Nf6 {[%clk 0:02:59]} 2. Nf3 {[%clk 0:03:00]}  d5 {[%clk 0:02:59]} 3. e3 {[%clk 0:02:59]}  c5 {[%clk 0:02:58]} 4. dxc5 {[%clk 0:02:57]}  Qa5+ {[%clk 0:02:56]} 5. Nbd2 {[%clk 0:02:50]}  Qxc5 {[%clk 0:02:55]} 6. c4 {[%clk 0:02:45]}  g6 {[%clk 0:02:44]} 7. Nb3 {[%clk 0:02:40]}  Qd6 {[%clk 0:02:31]} 8. cxd5 {[%clk 0:02:37]}  Qxd5 {[%clk 0:02:26]} 9. Bd2 {[%clk 0:02:28]}  Bg7 {[%clk 0:02:23]} 10. Rc1 {[%clk 0:02:27]}  O-O {[%clk 0:02:14]} 11. Bc4 {[%clk 0:02:25]}  Qh5 {[%clk 0:02:07]} 12. O-O {[%clk 0:02:23]}  Bg4 {[%clk 0:02:05]} 13. h3 {[%clk 0:02:14]}  Bxf3 {[%clk 0:02:04]} 14. Qxf3 {[%clk 0:02:15]}  Qxf3 {[%clk 0:02:03]} 15. gxf3 {[%clk 0:02:16]}  Nc6 {[%clk 0:02:03]} 16. Bc3 {[%clk 0:01:42]}  Nd7 {[%clk 0:01:57]} 17. Rfd1 {[%clk 0:01:34]}  Bxc3 {[%clk 0:01:40]} 18. Rxc3 {[%clk 0:01:35]}  Nde5 {[%clk 0:01:39]} 19. Be2 {[%clk 0:01:31]}  Rfd8 {[%clk 0:01:23]} 20. f4 {[%clk 0:01:30]}  Rxd1+ {[%clk 0:01:21]} 21. Bxd1 {[%clk 0:01:31]}  Nd7 {[%clk 0:01:20]} 22. Bf3 {[%clk 0:01:27]}  Rc8 {[%clk 0:01:08]} 23. Na5 {[%clk 0:01:18]}  Rb8 {[%clk 0:00:32]} 24. Nxc6 {[%clk 0:01:15]}  bxc6 {[%clk 0:00:30]} 25. Bxc6 {[%clk 0:01:16]}  Nf8 {[%clk 0:00:21]} 26. b3 {[%clk 0:01:08]}  Ne6 {[%clk 0:00:19]} 27. Rc4 {[%clk 0:01:05]}  Kg7 {[%clk 0:00:18]} 28. Bd5 {[%clk 0:01:04]}  Nf8 {[%clk 0:00:16]} 29. Rc7 {[%clk 0:01:02]}  e6 {[%clk 0:00:14]} 30. Bc4 {[%clk 0:01:00]}  a5 {[%clk 0:00:12]} 31. Ra7 {[%clk 0:01:00]}  Rd8 {[%clk 0:00:12]} 32. Rxa5 {[%clk 0:01:00]}  g5 {[%clk 0:00:10]} 33. Rxg5+ {[%clk 0:00:59]} 1-0


[Site "https://www.chess.com"]